bitfinex/quotes_ETHUSD_20251012
["timestamp","ask_amount","ask_price","bid_price","bid_amount"]
[1760287678250,1.92,4120.6,4116.3,0.0356]
[1760287678448,0.969,4121.9,4116.3,0.0356]
[1760287678449,3.415818,4120.8,4116.3,0.0356]
[1760287678611,4.421409,4120.8,4116.9,0.6336]
[1760287678812,4.421409,4120.8,4116.3,0.0356]
[1760287678813,0.6336,4120.8,4116.3,0.0356]
[1760287679053,0.429,4120.7,4116.3,0.0356]
[1760287679260,2.236926,4120.6,4116.4,0.6336]
[1760287679413,13.11598864,4117.9,4112.9,0.0356]
[1760287679614,13.11598864,4116.9,4109.9,0.97]
[1760287679948,13.11598864,4116.9,4107.4,1.23182593]
[1760287679949,13.11598864,4111.8,4105.1,2.43593508]
[1760287680154,2.5536,4113.8,4102.6,1.27065048]
[1760287680155,1.92,4111.5,4102.6,1.27065048]
[1760287680446,20.217785,4111.6,4101.9,0.97]
[1760287680447,0.429,4114.7,4106.7,30.0]
[1760287680616,13.11598864,4113.5,4106.9,33.85576064]
[1760287680807,13.11598864,4114.6,4107.9,13.11598864]
[1760287681020,0.38134528,4114.7,4108.8,13.11598864]
[1760287681233,13.11598864,4117.0,4109.0,30.0]
[1760287681523,13.11598864,4113.9,4109.1,0.0356]
[1760287681730,0.429,4115.3,4109.2,2.43356371]
[1760287681951,1.92,4113.3,4106.9,0.97]
[1760287682225,13.11598864,4113.4,4105.9,0.0356]
[1760287682226,8.585852,4110.6,4105.9,0.0356]
[1760287682427,2.86021543,4113.2,4106.0,27.077499]
[1760287682639,2.86021543,4113.2,4105.9,0.0356]
[1760287682640,1.92,4110.9,4106.1,0.0356]
[1760287682930,3.234394,4108.9,4104.6,0.971]
[1760287683134,0.429,4108.8,4102.7,13.11598864]
[1760287683358,13.33718864,4109.6,4102.4,3.026069]
[1760287683359,0.429,4108.7,4102.4,3.026069]
[1760287683660,0.034074,4106.0,4102.6,30.0]
[1760287683863,0.6336,4109.6,4102.9,30.0]
[1760287684027,13.11598864,4113.0,4106.1,13.11598864]
[1760287684227,30.0,4112.8,4105.4,0.0015]
[1760287684441,30.0,4112.8,4103.1,30.0]
[1760287684442,4.941889,4110.2,4104.4,10.27214]
[1760287684641,13.11598864,4110.3,4103.1,13.11598864]
[1760287684642,2.42955798,4116.0,4107.3,13.11598864]
[1760287684855,0.429,4113.5,4107.5,30.0]
[1760287685085,13.11598864,4112.3,4107.6,0.0015]
[1760287685271,0.32461774,4113.8,4108.0,1.92]
[1760287685471,0.429,4115.2,4111.6,2.43210281]
[1760287685673,0.429,4115.2,4108.8,2.43380062]
[1760287685674,13.11598864,4115.0,4110.5,0.0015]
[1760287686011,0.429,4115.2,4108.8,2.892]
[1760287686012,2.389542,4116.3,4110.7,2.4326757]
[1760287686193,2.389542,4116.3,4107.6,0.99999999]
[1760287686194,13.11598864,4114.3,4109.8,0.0015]
[1760287686499,0.429,4115.1,4108.7,0.0015]
[1760287686500,13.11598864,4114.6,4108.7,0.0015]
[1760287686698,0.972,4114.6,4108.9,2.43374139]
[1760287686865,0.972,4114.6,4108.8,3.195242]
[1760287686866,0.429,4114.5,4109.3,1.92]
[1760287687066,0.429,4114.5,4109.2,6.35938]
[1760287687067,0.429,4114.4,4107.7,0.6336]
[1760287687291,13.11598864,4113.6,4108.9,0.0015]
[1760287687495,0.6336,4114.2,4109.2,13.11598864]
[1760287687679,0.429,4115.2,4110.3,0.6336]
[1760287687990,0.429,4115.2,4110.1,13.11598864]
[1760287687991,13.11598864,4112.8,4108.2,0.0015]
[1760287688192,0.1271142,4114.1,4108.2,0.0015]
[1760287688359,0.1271142,4114.1,4110.7,13.11598864]
[1760287688558,0.1271142,4114.1,4108.1,1.22110094]
[1760287688559,0.429,4117.4,4112.7,0.6336]
[1760287688759,0.429,4117.4,4114.0,2.43067987]
[1760287688992,0.429,4117.4,4112.5,13.11598864]
[1760287688993,13.54498864,4117.3,4112.5,0.0015]
[1760287689157,13.54498864,4117.3,4111.4,2.4322204]
[1760287689359,0.429,4118.1,4112.1,1.92]
[1760287689590,13.11598864,4115.9,4110.7,0.0015]
[1760287689771,1.92,4115.2,4110.3,0.0015]
[1760287689990,0.429,4116.4,4111.1,1.92]
[1760287690168,0.12702995,4117.2,4110.3,0.0015]
[1760287690169,0.429,4116.3,4110.3,0.0015]
[1760287690364,4.977228,4116.2,4110.3,0.0015]
[1760287690568,4.977228,4116.2,4106.0,0.002]
[1760287690569,2.5536,4113.1,4107.1,13.11598864]
[1760287690886,0.2212,4108.5,4105.6,0.002]
[1760287691225,1.29708429,4112.0,4105.6,0.002]
[1760287691226,1.92,4109.9,4105.6,0.002]
[1760287691369,0.429,4109.4,4105.6,0.002]
[1760287691567,0.6336,4108.8,4105.6,0.002]
[1760287691804,0.429,4109.8,4105.7,0.972]
[1760287692009,0.429,4112.6,4106.8,20.220828]
[1760287692328,0.2212,4113.0,4105.6,2.43769142]
[1760287692329,16.46973164,4112.5,4106.9,0.0015]
[1760287692519,7.851228,4111.1,4105.8,0.0015]
[1760287692720,1.92,4111.5,4105.9,2.061044]
[1760287692881,0.429,4111.4,4106.1,2.43540098]
[1760287693085,2.920831,4110.7,4105.8,0.973]
[1760287693410,1.10016975,4112.6,4105.6,0.002]
[1760287693411,0.77217993,4110.6,4105.6,0.002]
[1760287693614,0.429,4110.6,4105.8,30.0]
[1760287693929,13.11598864,4111.9,4105.6,0.002]
[1760287693930,1.92,4110.1,4105.6,0.002]
[1760287694080,0.6336,4110.4,4105.7,2.411089]
[1760287694285,0.429,4110.5,4105.9,4.19693]
[1760287694514,3.592114,4109.6,4105.6,0.002]
[1760287694719,0.429,4110.4,4105.6,0.002]
[1760287694720,0.6336,4108.0,4105.6,0.002]
[1760287694932,13.11598864,4105.7,4101.8,0.002]
[1760287695100,2.239283,4107.8,4102.4,2.590525]
[1760287695435,0.429,4109.0,4102.6,6.841114]
[1760287695586,0.429,4108.9,4102.9,4.35729205]
[1760287695920,0.34317993,4109.3,4103.6,5.81099]
[1760287695921,0.429,4108.8,4103.6,5.81099]
[1760287696126,13.11598864,4111.2,4104.4,13.11598864]
[1760287696427,2.860217,4111.0,4104.5,1.9235]
[1760287696628,30.0,4110.8,4102.4,0.0035]
[1760287696785,1.92,4107.5,4102.5,2.6327]
[1760287696989,0.6336,4107.8,4102.6,0.0035]
[1760287697183,0.429,4107.4,4102.8,2.43735985]
[1760287697515,0.429,4109.2,4105.3,2.77745]
[1760287697716,0.4281,4110.3,4105.7,2.43563825]
[1760287697924,0.4281,4111.6,4106.2,0.6336]
[1760287698086,0.4281,4111.5,4105.9,0.0035]
[1760287698284,13.11598864,4110.8,4106.7,2.43501286]
[1760287698525,0.2212,4113.0,4106.8,0.0035]
[1760287698526,0.4281,4111.0,4106.8,0.0035]
[1760287698707,0.4281,4110.7,4106.4,2.21993]
[1760287699015,0.4281,4110.7,4106.5,0.0035]
[1760287699202,0.4281,4110.7,4106.7,4.35504517]
[1760287699402,0.4281,4110.7,4106.6,2.395046]
[1760287699604,0.4281,4111.7,4106.9,1.92]
[1760287699786,13.11598864,4107.8,4102.9,2.43730044]
[1760287699990,0.4281,4107.7,4102.9,2.590388]
[1760287700194,0.4281,4109.3,4106.4,2.4352029]
[1760287700429,0.4281,4110.5,4106.4,6.17345]
[1760287700616,0.4281,4111.6,4106.6,18.28431764]
[1760287700820,0.4281,4111.6,4106.4,1.92]
[1760287700821,0.4281,4112.8,4107.6,13.11598864]
[1760287701128,0.4281,4112.8,4106.8,8.500218]
[1760287701129,0.4281,4112.7,4107.8,2.50474]
[1760287701331,0.4281,4112.7,4108.7,2.43381172]
[1760287701493,0.4281,4113.7,4110.7,2.43264697]
[1760287701849,13.11598864,4116.5,4110.5,1.92]
[1760287701993,0.4281,4115.8,4110.8,0.0035]
[1760287702510,0.4281,4115.8,4110.9,2.43255734]
[1760287702805,13.11598864,4114.8,4109.5,0.0035]
[1760287703117,0.2167,4118.4,4101.4,0.002]
[1760287703118,0.4281,4115.9,4110.5,1.92]
[1760287703293,0.4281,4116.9,4113.0,2.43129122]
[1760287703501,0.4281,4116.9,4113.1,0.974]
[1760287703693,0.4281,4116.9,4112.3,1.92]
[1760287703896,0.4281,4116.9,4112.4,0.0035]
[1760287704096,5.23289,4116.7,4112.4,0.0035]
[1760287704294,0.4281,4116.9,4112.4,0.0035]
[1760287704514,0.2167,4118.4,4112.6,1.92]
[1760287704756,0.4281,4117.8,4112.7,0.0035]
[1760287705060,0.4281,4119.5,4114.1,13.11598864]
[1760287705353,0.4281,4119.5,4114.5,1.92]
[1760287705626,0.4281,4120.4,4114.9,1.92]
[1760287705829,0.4281,4120.4,4113.5,13.11598864]
[1760287705830,0.38062951,4122.6,4115.2,18.880268]
[1760287706061,0.38062951,4122.6,4115.3,0.0035]
[1760287706062,0.4281,4120.3,4115.3,0.0035]
[1760287706197,2.428,4120.2,4115.4,0.973]
[1760287706530,13.11598864,4119.5,4115.4,0.973]
[1760287706828,3.288079,4118.2,4112.7,0.9765]
[1760287707028,1.92,4117.9,4112.8,3.3095]
[1760287707231,0.35535617,4119.4,4112.8,3.3095]
[1760287707232,0.4281,4119.0,4113.0,20.497331]
[1760287707529,1.92,4118.8,4113.4,1.92]
[1760287707730,1.92,4116.2,4111.8,0.0035]
[1760287707930,1.92,4116.2,4109.8,13.11598864]
[1760287707931,1.92,4116.2,4110.9,0.973]
[1760287708230,1.92,4116.2,4106.4,1.27523053]
[1760287708231,1.92,4115.0,4110.3,0.0035]
[1760287708434,0.4281,4114.9,4110.4,2.43285325]
[1760287708733,2.43031083,4114.7,4110.1,0.973]
[1760287709028,1.92,4113.0,4110.1,0.973]
[1760287709230,0.4281,4112.9,4110.1,0.973]
[1760287709436,0.4281,4115.3,4110.2,2.87153]
[1760287709595,0.4281,4116.5,4111.7,1.92]
[1760287709790,0.4281,4116.5,4111.5,1.92]
[1760287709791,0.4281,4116.5,4112.0,2.5536]
[1760287710049,0.001,4116.9,4112.2,2.29745]
[1760287710352,0.001,4116.9,4111.3,13.11598864]
[1760287710353,0.001,4116.9,4112.3,13.11948864]
[1760287710645,0.001,4116.9,4114.9,0.6336]
[1760287710849,0.001,4116.9,4112.3,0.0035]
[1760287710850,0.001,4116.9,4115.0,0.973]
[1760287711162,0.001,4116.9,4114.3,0.973]
[1760287712019,0.001,4116.9,4116.7,2.42912385]
[1760287712214,0.001,4116.9,4114.4,2.53534]
[1760287712215,0.001,4117.4,4116.9,2.42899113]
[1760287712452,0.001,4117.4,4115.2,0.6336]
[1760287712616,0.001,4117.4,4115.5,2.42983841]
[1760287712816,0.001,4117.4,4115.4,0.0025]
[1760287713338,0.001,4117.4,4114.3,0.973]
[1760287713542,0.001,4117.4,4114.8,0.0025]
[1760287713913,0.001,4117.4,4114.3,0.973]
[1760287714215,0.001,4117.4,4114.5,1.92]
[1760287714417,0.001,4117.4,4114.4,4.87076804]
[1760287714418,0.4281,4122.6,4116.7,6.687382]
[1760287714615,0.4281,4122.6,4117.1,2.5536]
[1760287714835,5.0,4122.5,4117.6,1.92]
[1760287715045,5.0,4122.5,4117.2,0.0025]
[1760287715046,0.4281,4122.4,4117.2,0.0025]
[1760287715356,0.1208,4120.5,4119.8,0.1208]
[1760287715655,0.2167,4123.2,4118.4,0.6336]
[1760287715656,0.4281,4122.1,4118.4,0.6336]
[1760287715817,0.2167,4123.2,4118.5,1.9225]
[1760287716012,0.38045076,4124.7,4117.8,1.28021896]
[1760287716256,0.4281,4126.0,4119.4,0.6336]
[1760287716447,0.4281,4126.0,4119.5,0.0025]
[1760287716448,2.42396452,4125.5,4119.5,0.0025]
[1760287716650,13.134395,4125.8,4119.5,0.0025]
[1760287716869,13.134395,4125.8,4118.0,2.42831477]
[1760287716870,30.0,4125.2,4118.7,2.42795056]
[1760287717072,30.0,4125.2,4118.6,0.0025]
[1760287717073,30.0,4124.9,4118.6,0.0025]
[1760287717349,1.92,4124.5,4118.6,0.0025]
[1760287717512,0.6336,4124.1,4118.0,2.42836328]
[1760287717717,1.92,4123.3,4118.1,0.6361]
[1760287717944,0.4281,4124.0,4118.3,30.0]
[1760287718142,0.4281,4124.0,4118.2,0.0025]
[1760287718143,0.4281,4124.0,4118.7,1.92]
[1760287718363,0.4281,4124.1,4119.2,0.6336]
[1760287718515,0.4281,4124.1,4121.5,2.42625758]
[1760287718719,0.4281,4124.1,4120.0,0.6336]
[1760287718942,6.012726,4124.0,4119.1,2.42768852]
[1760287719249,2.739033,4123.7,4118.8,0.0025]
[1760287719448,0.6336,4123.5,4118.9,2.42783267]
[1760287719653,0.6336,4123.5,4117.7,0.973]
[1760287719654,0.4281,4123.9,4119.0,0.0025]
[1760287719962,0.4281,4123.9,4121.2,2.42647118]
[1760287720128,0.4281,4123.9,4119.0,0.0025]
[1760287720129,2.668,4123.8,4120.7,2.42675529]
[1760287720448,0.4281,4123.9,4119.3,0.6336]
[1760287720667,0.4281,4123.9,4120.0,0.0025]
[1760287721018,1.35330174,4125.9,4120.0,0.0025]
[1760287721019,0.4281,4125.1,4120.7,0.6336]
[1760287721243,0.4281,4125.1,4120.8,1.9225]
[1760287721419,2.246697,4126.2,4120.9,0.0025]
[1760287721615,2.42372182,4125.9,4120.9,0.0025]
[1760287721815,5.186499,4125.7,4121.1,0.6336]
[1760287722059,3.982942,4125.7,4122.7,2.42559165]
[1760287722268,1.92,4125.4,4119.5,2.42747906]
[1760287722423,2.5536,4125.2,4119.6,0.0025]
[1760287722633,0.6336,4124.6,4119.6,0.0025]
[1760287722874,0.6336,4123.1,4119.2,2.42765523]
[1760287723033,0.4281,4125.1,4117.7,0.973]
[1760287723034,0.4281,4123.0,4117.7,0.973]
[1760287723247,3.542404,4122.9,4119.1,2.4276917]
[1760287723461,1.92,4122.6,4118.5,2.42805796]
[1760287723677,2.788317,4122.7,4117.8,0.0025]
[1760287723678,0.4281,4123.0,4118.6,0.0025]
[1760287724173,0.972,4124.0,4118.9,1.92]
[1760287724471,0.972,4124.0,4117.7,0.973]
[1760287724472,0.6336,4122.8,4118.4,2.43060286]
[1760287724633,0.6336,4122.8,4117.7,0.973]
[1760287724634,0.6336,4122.8,4118.5,0.0025]
[1760287724836,2.42446909,4124.7,4118.6,5.882112]
[1760287725036,0.4281,4123.9,4118.9,1.92]
[1760287725375,1.92,4123.7,4119.0,0.0025]
[1760287725592,0.4281,4123.9,4119.2,1.92]
[1760287725868,0.4281,4125.2,4119.7,2.42736121]
[1760287726076,0.4281,4125.2,4120.2,1.92]
[1760287726325,0.4281,4125.2,4120.6,1.92]
[1760287726435,0.4281,4125.2,4122.6,2.42559581]
[1760287726635,0.4281,4125.2,4120.7,6.30165]
[1760287726636,0.4281,4125.2,4121.0,2.42658487]
[1760287726836,0.4281,4125.2,4120.7,0.0025]
[1760287726837,7.057543,4125.1,4120.7,0.0025]
[1760287727152,2.216,4125.0,4120.7,0.0025]
[1760287727352,1.921,4125.0,4120.7,0.0025]
[1760287727644,2.914808,4124.9,4120.7,0.0025]
[1760287727858,1.92,4124.9,4120.7,0.0025]
[1760287728180,2.004497,4124.7,4120.7,0.0025]
[1760287728346,2.004497,4124.7,4121.1,5.0]
[1760287728537,0.428,4124.6,4120.7,0.0025]
[1760287728731,0.428,4124.6,4118.5,2.42805931]
[1760287728732,4.10422,4124.3,4119.7,0.0025]
[1760287729036,3.218323,4123.9,4119.7,0.0025]
[1760287729288,2.749099,4123.3,4120.2,2.42706335]
[1760287729583,2.42513035,4123.5,4119.7,0.0025]
[1760287729584,0.428,4124.2,4119.7,0.0025]
[1760287729740,5.460468,4124.1,4119.9,2.42724337]
[1760287729937,0.428,4124.2,4119.3,0.6336]
[1760287730135,0.428,4124.2,4117.8,1.92]
[1760287730136,0.38032194,4125.9,4120.9,4.16536]
[1760287730332,4.922783,4124.9,4121.0,0.0025]
[1760287730536,3.48325,4124.8,4121.0,0.0025]
[1760287730736,3.48325,4124.8,4121.6,2.42618344]
[1760287730737,3.150023,4124.8,4121.6,2.42618344]
[1760287730965,0.6336,4124.5,4121.0,0.0025]
[1760287731144,1.92,4124.6,4116.7,1.24117156]
[1760287731341,2.42572018,4122.5,4117.2,0.39010839]
[1760287731542,1.92,4124.4,4117.4,9.23252215]
[1760287731543,0.428,4122.4,4117.4,9.23252215]
[1760287731770,0.428,4122.4,4118.2,2.42823817]
[1760287732081,0.428,4122.4,4117.5,0.0025]
[1760287732082,0.428,4122.4,4118.4,2.42812742]
[1760287732287,0.6336,4123.3,4120.3,2.4269743]
[1760287732470,2.5536,4123.3,4119.2,2.42765585]
[1760287732771,0.971,4123.7,4120.6,2.42682702]
[1760287732772,0.6336,4123.1,4120.6,2.42682702]
[1760287732971,0.428,4123.2,4121.3,2.42641203]
[1760287733175,0.428,4124.1,4120.2,0.0025]
[1760287733478,0.428,4124.3,4120.2,0.0025]
[1760287733686,4.130245,4124.2,4120.2,2.42953361]
[1760287733908,2.43183,4124.9,4120.3,0.0025]
[1760287734207,0.429,4125.0,4120.3,0.0025]
[1760287734208,0.429,4125.0,4121.0,2.42659548]
[1760287734388,0.429,4125.0,4121.6,0.6336]
[1760287734592,0.001,4125.0,4121.7,1.9225]
[1760287734904,0.001,4125.0,4121.8,0.0025]
[1760287735135,0.001,4125.0,4121.8,0.6336]
[1760287735315,0.001,4125.0,4123.9,2.42484131]
[1760287735516,0.001,4125.0,4122.2,2.42588908]
[1760287735663,0.001,4125.0,4122.4,2.42577139]
[1760287735860,0.001,4125.0,4124.9,0.1208]
[1760287736066,0.001,4125.0,4122.9,2.5536]
[1760287736370,0.001,4125.0,4123.6,2.5536]
[1760287736573,0.001,4125.0,4124.9,2.42430119]
[1760287736761,0.001,4125.0,4123.2,1.92]
[1760287736963,0.001,4125.0,4123.2,0.0025]
[1760287737165,0.001,4125.0,4122.2,0.0025]
[1760287737394,0.001,4125.0,4122.4,2.42577139]
[1760287737598,0.001,4125.0,4122.3,2.42583024]
[1760287737905,0.001,4125.0,4122.2,0.0025]
[1760287737906,0.001,4125.0,4122.4,2.42571337]
[1760287738059,0.001,4125.0,4122.2,0.0025]
[1760287738060,0.001,4125.0,4122.9,2.4254407]
[1760287738261,0.001,4125.0,4122.5,0.0025]
[1760287739175,0.001,4125.0,4122.5,2.42820485]
[1760287739358,0.001,4125.0,4122.2,2.42588908]
[1760287739563,0.001,4125.0,4122.8,0.6336]
[1760287739798,0.001,4125.0,4124.9,2.42430119]
[1760287740103,0.001,4125.0,4123.9,2.4248763]
[1760287740104,0.001,4125.0,4123.9,2.42488906]
[1760287740268,0.001,4125.5,4123.6,1.92]
[1760287740269,0.001,4125.5,4125.4,2.42400736]
[1760287740694,0.428,4129.3,4125.3,0.6336]
[1760287740867,0.971,4131.8,4125.3,0.6336]
[1760287740868,0.2167,4131.0,4125.3,1.92]
[1760287741070,8.581568,4129.9,4125.1,0.971]
[1760287741269,8.301956,4129.6,4125.2,0.6336]
[1760287741494,0.428,4129.5,4125.2,0.6336]
[1760287741668,0.2244,4129.8,4125.1,0.971]
[1760287741669,11.86322,4129.3,4125.1,0.971]
[1760287742003,2.21294,4129.1,4125.2,0.6336]
[1760287742211,0.428,4129.5,4127.1,2.42300147]
[1760287742363,0.428,4130.4,4126.4,4.84683986]
[1760287742564,0.428,4130.3,4125.6,0.6336]
[1760287742828,0.428,4130.3,4125.3,1.92]
[1760287743113,0.428,4130.3,4125.6,2.5536]
[1760287743261,12.085108,4130.2,4122.7,0.971]
[1760287743600,2.5536,4128.8,4122.7,0.971]
[1760287743799,2.5536,4128.6,4124.9,2.42429744]
[1760287743964,0.37981675,4129.6,4123.6,0.28696701]
[1760287744163,0.428,4130.9,4127.0,0.6336]
[1760287744363,3.927165,4130.8,4125.7,0.971]
[1760287744580,1.92,4130.5,4126.0,2.42364665]
[1760287744809,2.348,4130.4,4126.8,2.42314421]
[1760287745096,2.348,4130.4,4124.7,0.971]
[1760287745097,2.42160168,4129.5,4124.7,0.971]
[1760287745312,0.428,4129.4,4124.7,0.971]
[1760287745669,0.428,4129.4,4124.8,1.92]
[1760287745902,2.42182309,4129.2,4124.7,0.971]
[1760287746102,2.42235811,4128.3,4122.3,0.971]
[1760287746302,2.42235811,4128.3,4127.0,0.1208]
[1760287746303,0.1208,4127.7,4127.0,0.1208]
[1760287746477,0.1208,4127.7,4122.3,0.971]
[1760287746478,0.001,4129.0,4122.5,1.92]
[1760287746677,0.001,4129.0,4122.6,6.61566]
[1760287746678,3.655754,4128.9,4122.6,6.61566]
[1760287747002,0.001,4129.0,4122.5,1.92]
[1760287747003,0.428,4128.8,4122.5,1.92]
[1760287747208,0.001,4129.0,4122.8,1.92]
[1760287747369,0.001,4129.0,4125.8,2.42376825]
[1760287747572,0.001,4129.0,4127.0,2.42301547]
[1760287747902,0.001,4129.0,4121.2,13.2486973]
[1760287747903,1.92,4128.5,4121.2,13.2486973]
[1760287748102,11.460802,4128.2,4124.3,2.42460197]
[1760287748303,11.460802,4128.2,4121.4,2.42635997]
[1760287748304,0.6524,4128.4,4121.5,1.92]
[1760287748502,0.6524,4128.4,4122.1,0.6336]
[1760287748711,0.428,4128.4,4125.3,2.42401236]
[1760287749009,3.250309,4128.3,4124.0,0.6336]
[1760287749312,0.428,4128.2,4125.7,2.42380037]
[1760287749471,0.001,4129.0,4123.4,1.92]
[1760287749674,0.001,4129.0,4124.5,0.6336]
[1760287749880,3.19078,4128.9,4124.6,1.92]
[1760287750114,3.19078,4128.9,4122.9,0.97]
[1760287750115,2.692209,4128.7,4123.1,4.654]
[1760287750411,2.692209,4128.7,4122.9,0.97]
[1760287750412,3.0561393,4127.9,4122.9,0.97]
[1760287750611,30.6336,4126.0,4118.2,2.42824534]
[1760287750771,0.6336,4124.4,4118.6,2.42800951]
[1760287751107,4.34483026,4124.0,4118.0,10.843405]
[1760287751310,0.6336,4123.7,4117.9,0.97]
[1760287751604,0.428,4125.0,4118.7,2.541]
[1760287751804,0.428,4125.0,4117.9,0.97]
[1760287751805,0.6524,4125.9,4119.4,23.271675]
[1760287751971,0.6524,4125.9,4119.8,18.002063]
[1760287752173,0.6524,4125.9,4120.3,0.6336]
[1760287752372,0.6524,4125.9,4120.5,2.42688994]
[1760287752573,0.6524,4125.9,4121.0,3.856723]
[1760287752808,0.6524,4125.9,4117.9,1.96999999]
[1760287752809,0.6336,4125.2,4117.9,0.97]
[1760287753016,0.428,4125.1,4118.0,24.881541]
[1760287753226,0.428,4125.1,4118.1,27.575223]
[1760287753227,0.6336,4125.0,4118.1,27.575223]
[1760287753508,0.428,4124.9,4118.1,1.21011963]
[1760287753693,0.428,4124.9,4122.6,2.42563989]
[1760287753907,0.97,4126.3,4117.9,0.97]
[1760287753908,0.428,4126.0,4118.7,1.92]
[1760287754082,0.428,4126.0,4118.4,31.8663334]
[1760287754282,0.428,4126.0,4117.9,12.94616617]
[1760287754283,0.428,4126.0,4118.8,0.6336]
[1760287754514,2.42228818,4128.4,4120.1,0.6336]
[1760287754825,0.428,4126.9,4124.3,2.42464861]
[1760287754975,0.428,4126.9,4124.2,2.42465825]
[1760287755174,0.97,4128.7,4123.7,1.92]
[1760287755385,0.428,4127.8,4124.0,0.6336]
[1760287755582,0.428,4127.8,4124.1,0.6336]
[1760287755787,0.428,4127.8,4122.5,2.42566084]
[1760287755788,0.428,4127.8,4125.6,2.42386628]
[1760287756000,0.428,4127.8,4124.4,2.42454543]
[1760287756200,0.001,4129.0,4125.3,0.6336]
[1760287756374,0.001,4129.0,4124.3,0.6336]
[1760287756375,0.428,4128.4,4124.3,0.6336]
[1760287756590,0.428,4128.4,4123.8,2.42492517]
[1760287756591,0.428,4128.4,4125.7,2.42377388]
[1760287756777,0.001,4129.0,4122.4,1.28492972]
[1760287756971,0.001,4129.0,4126.8,2.42317985]
[1760287757211,0.001,4129.0,4123.0,0.6336]
[1760287757374,0.001,4129.0,4123.7,0.6336]
[1760287757574,0.001,4129.0,4124.2,2.42467594]
[1760287757785,0.001,4129.0,4123.6,1.92]
[1760287757985,0.001,4129.0,4123.5,11.97616617]
[1760287757986,0.001,4129.0,4123.9,20.984495]
[1760287758191,0.001,4129.0,4124.2,2.5536]
[1760287758476,0.001,4129.0,4125.9,0.6336]
[1760287758676,0.001,4129.0,4125.8,2.42371742]
[1760287758677,0.001,4129.0,4127.4,2.42282378]
[1760287758915,0.001,4129.0,4126.2,1.92]
[1760287759080,0.001,4129.0,4126.2,2.5536]
[1760287759280,0.001,4129.0,4125.0,1.92]
[1760287759614,0.001,4129.0,4125.8,0.6336]
[1760287759820,0.001,4129.0,4125.4,0.6336]
[1760287759821,0.001,4129.0,4126.0,0.6336]
[1760287760109,0.001,4129.0,4127.0,2.42301471]
[1760287760342,0.001,4129.0,4126.2,2.42353739]
[1760287760518,0.001,4129.0,4126.2,0.6336]
[1760287760727,0.001,4129.0,4123.9,1.92]
[1760287760909,0.001,4129.0,4125.2,2.42412489]
[1760287761110,0.001,4129.0,4125.5,0.6336]
[1760287761309,0.001,4129.0,4125.1,0.6336]
[1760287761529,0.001,4129.0,4127.4,2.42283267]
[1760287761724,0.001,4129.0,4125.8,1.92]
[1760287761926,0.001,4129.0,4122.2,0.97]
[1760287761927,0.001,4129.0,4122.6,0.6336]
[1760287762127,0.001,4129.0,4126.3,2.42347302]
[1760287762344,0.001,4129.0,4126.2,0.6336]
[1760287762558,0.001,4129.0,4123.3,2.42524191]
[1760287762727,0.001,4129.0,4123.6,2.42506547]
[1760287762728,1.92,4128.8,4123.6,2.42506547]
[1760287763046,1.92,4128.8,4125.0,2.42422379]
[1760287763249,0.001,4129.0,4123.3,1.92]
[1760287763550,0.001,4129.0,4123.1,0.97]
[1760287763551,0.001,4129.0,4124.9,0.6336]
[1760287763720,0.001,4129.0,4127.8,2.42259655]
[1760287763917,0.001,4129.0,4126.7,2.42320824]
[1760287764149,0.001,4129.0,4126.9,2.42312631]
[1760287764447,0.001,4129.0,4123.3,1.23429008]
[1760287764448,0.001,4129.0,4126.4,2.42341781]
[1760287764650,0.001,4129.0,4128.9,2.42195257]
[1760287764850,1e-08,4129.7,4128.9,2.42195257]
[1760287765052,1e-08,4129.7,4129.6,2.42154203]
[1760287765417,1e-08,4129.7,4129.6,4.34154203]
[1760287766529,1e-08,4129.7,4129.6,7.28621803]
[1760287766728,1e-08,4129.7,4129.6,7.94292403]
[1760287766927,1e-08,4129.7,4129.6,7.63353403]
[1760287767148,1e-08,4129.7,4129.6,4.34154203]
[1760287768561,1e-08,4129.7,4129.6,8.08828803]
[1760287768738,1e-08,4129.7,4129.6,32.51187003]
[1760287769049,1e-08,4129.7,4129.6,4.97514203]
[1760287769255,1e-08,4129.7,4129.6,10.12479203]
[1760287769416,0.001,4130.2,4130.1,3.05484888]
[1760287769615,0.001,4130.2,4130.1,2.42124888]
[1760287769822,0.001,4130.2,4129.5,0.97]
[1760287770454,0.001,4130.2,4127.1,0.97]
[1760287770628,0.001,4130.2,4129.5,2.42154746]
[1760287770830,0.001,4130.2,4129.5,2.42156488]
[1760287771023,0.001,4130.2,4127.1,0.97]
[1760287771351,0.001,4130.2,4127.8,2.42255776]
[1760287771553,0.001,4130.2,4127.1,0.97]
[1760287771726,0.001,4130.2,4127.9,2.42253193]
[1760287771928,0.001,4130.2,4127.1,0.97]
[1760287772619,0.001,4130.2,4127.6,2.42271537]
[1760287772822,0.001,4130.2,4127.8,0.6336]
[1760287773048,0.001,4130.2,4130.1,2.42124888]
[1760287773247,0.001,4130.2,4130.1,3.05484888]
[1760287773433,0.001,4130.2,4128.3,2.42227988]
[1760287773633,0.001,4130.2,4127.2,1.92]